bitfinex/quotes_SOLUSD_20240530
["timestamp","ask_amount","ask_price","bid_price","bid_amount"]
[1717032580715,22.1973,168.39,168.34,2.1979]
[1717032580911,22.1973,168.39,168.34,8.471]
[1717032582315,2.1973,168.39,168.34,8.471]
[1717032582733,2.1974,168.38,168.34,6.2731]
[1717032585017,6.18455936,168.45,168.38,6.3234]
[1717032585235,46.14263494,168.55,168.39,2.1971]
[1717032585412,2.1965,168.45,168.38,8.5207]
[1717032585616,2.1965,168.45,168.39,2.1972]
[1717032585817,2.1963,168.46,168.4,2.197]
[1717032586036,2.1963,168.46,168.39,2.1972]
[1717032586341,2.1965,168.45,168.39,2.1972]
[1717032587219,4.3921,168.49,168.4,2.197]
[1717032587422,2.1964,168.46,168.39,2.1972]
[1717032588021,2.1964,168.46,168.4,2.1971]
[1717032588711,2.1963,168.47,168.38,13.1134]
[1717032588916,2.1963,168.46,168.4,2.1971]
[1717032589343,2.1963,168.46,168.39,2.1972]
[1717032590441,2.1966,168.45,168.38,8.5208]
[1717032590937,2.1966,168.44,168.39,2.1972]
[1717032591136,2.1966,168.44,168.37,15.624]
[1717032591516,2.1965,168.45,168.39,2.1972]
[1717032592724,2.1966,168.44,168.39,2.1972]
[1717032592930,6.5896,168.45,168.36,2.1976]
[1717032593139,4.88059928,168.42,168.36,2.1976]
[1717032593318,4.88059928,168.42,168.36,2.1975]
[1717032593523,2.197,168.41,168.36,2.1975]
[1717032593723,2.197,168.41,168.35,2.1977]
[1717032593923,2.197,168.41,168.36,2.1976]
[1717032594341,4.88049928,168.42,168.36,2.1976]
[1717032597036,4.88049928,168.42,168.37,2.1975]
[1717032597240,4.88049928,168.42,168.36,2.1976]
[1717032597543,2.68359928,168.42,168.36,2.1976]
[1717032597752,2.197,168.41,168.36,2.1976]
[1717032597950,2.197,168.41,168.35,2.1977]
[1717032598257,7.07739928,168.42,168.33,2.1979]
[1717032598458,2.1973,168.39,168.34,2.1979]
[1717032599248,2.1974,168.38,168.33,2.1979]
[1717032599653,2.1974,168.38,168.34,2.1979]
[1717032600134,2.1974,168.38,168.33,2.198]
[1717032600340,2.1975,168.37,168.32,2.1981]
[1717032600933,2.1974,168.38,168.33,2.198]
[1717032601644,30.9854,168.41,168.33,2.198]
[1717032601955,2.1974,168.38,168.33,2.198]
[1717032605354,2.1975,168.37,168.32,2.1981]
[1717032605537,2.1975,168.37,168.3,11.1867]
[1717032605538,20.0,168.41,168.28,4.3973]
[1717032605740,2.1978,168.35,168.3,2.1983]
[1717032606052,2.1979,168.34,168.3,2.1983]
[1717032606241,2.1978,168.35,168.31,2.1983]
[1717032606438,2.1977,168.36,168.28,17.7832]
[1717032606650,2.1977,168.36,168.31,2.1982]
[1717032606956,2.1977,168.36,168.32,2.1981]
[1717032607329,2.1977,168.36,168.31,2.1982]
[1717032607551,2.1977,168.36,168.32,2.1981]
[1717032608036,2.1975,168.37,168.32,2.198]
[1717032609753,2.1976,168.37,168.32,2.198]
[1717032610629,2.1973,168.39,168.32,6.79]
[1717032610831,2.1974,168.38,168.34,6.79]
[1717032611055,2.1974,168.38,168.34,2.1978]
[1717032611435,2.1974,168.38,168.33,2.198]
[1717032611635,2.1974,168.38,168.34,2.1978]
[1717032612142,2.1973,168.39,168.34,2.1978]
[1717032612359,2.1973,168.39,168.35,1.67625188]
[1717032612653,2.1974,168.38,168.34,2.1978]
[1717032612829,2.1974,168.38,168.31,4.3964]
[1717032613037,2.1974,168.38,168.33,2.1979]
[1717032614958,20.0,168.4,168.26,3.08501944]
[1717032614959,4.3965,168.32,168.26,3.08501944]
[1717032615144,4.3965,168.32,168.23,3.08501944]
[1717032615345,2.1985,168.3,168.23,5.28421944]
[1717032615547,2.1985,168.3,168.24,2.1991]
[1717032615746,2.1982,168.32,168.25,6.79]
[1717032615954,20.0,168.34,168.26,6.79]
[1717032616253,2.1982,168.32,168.27,2.37354131]
[1717032616442,6.0507,168.32,168.27,2.37354131]
[1717032616858,2.1984,168.3,168.23,2.1993]
[1717032617056,22.1984,168.3,168.23,2.1993]
[1717032617857,2.1987,168.28,168.21,2.1995]
[1717032618056,2.1987,168.28,168.2,0.8027704]
[1717032618357,24.92447443,168.29,168.23,8.9892]
[1717032618537,4.92447443,168.29,168.23,8.9892]
[1717032618741,22.72587443,168.29,168.24,2.1991]
[1717032619462,2.72587443,168.29,168.27,2.1988]
[1717032619659,2.72587443,168.29,168.27,8.9888]
[1717032619866,2.72587443,168.29,168.28,2.1987]
[1717032620076,2.72587443,168.29,168.28,8.9887]
[1717032621266,2.72587443,168.29,168.28,2.1987]
[1717032622904,2.72587443,168.29,168.27,2.1988]
[1717032623661,2.72587443,168.29,168.28,2.1987]
[1717032624783,2.72587443,168.29,168.25,2.199]
[1717032624983,2.72587443,168.29,168.25,2.1991]
[1717032625692,4.92447443,168.29,168.23,2.1993]
[1717032625854,4.92447443,168.29,168.24,2.1992]
[1717032626767,11.05837443,168.29,168.2,0.8027704]
[1717032626970,11.05837443,168.29,168.2,7.5927704]
[1717032626971,2.1987,168.28,168.2,7.5927704]
[1717032627371,2.1987,168.28,168.22,2.1993]
[1717032628093,6.1999,168.28,168.23,2.1993]
[1717032628400,6.1999,168.28,168.24,2.1992]
[1717032629708,2.72587443,168.29,168.21,4.3992]
[1717032630002,2.72587443,168.29,168.24,6.79]
[1717032630488,2.72587443,168.29,168.21,4.3992]
[1717032630672,2.72587443,168.29,168.24,2.1991]
[1717032630673,4.92437443,168.29,168.24,2.1991]
[1717032631989,6.6397,168.28,168.21,2.1995]
[1717032632575,8.4803,168.26,168.21,2.1995]
[1717032632777,6.2813,168.26,168.22,2.1994]
[1717032634290,8.4803,168.26,168.21,2.1995]
[1717032634493,6.1779,168.25,168.21,2.1995]
[1717032636880,2.199,168.26,168.22,1.53400225]
[1717032637790,8.3769,168.26,168.21,2.1995]
[1717032637996,2.1991,168.25,168.2,3.0024704]
[1717032641697,2.1991,168.25,168.21,2.1996]
[1717032641886,8.3768,168.26,168.21,2.1996]
[1717032642284,8.3768,168.26,168.21,2.1995]
[1717032643411,8.3768,168.26,168.22,1.18846851]
[1717032644000,8.3768,168.26,168.21,2.1995]
[1717032646086,2.1991,168.25,168.21,2.1995]
[1717032647303,8.3769,168.26,168.21,2.1995]
[1717032648483,2.1991,168.25,168.21,2.1995]
[1717032649003,8.3769,168.26,168.21,2.1995]
[1717032649824,2.1991,168.25,168.21,2.1995]
[1717032650186,2.1991,168.25,168.2,3.0024704]
[1717032650812,8.3919,168.25,168.2,3.0024704]
[1717032651026,8.3919,168.25,168.21,2.1996]
[1717032651706,8.3919,168.25,168.2,3.0024704]
[1717032652789,8.3919,168.25,168.21,2.1996]
[1717032654311,6.1928,168.25,168.22,2.1994]
[1717032655296,6.1928,168.25,168.21,2.1995]
[1717032656717,8.3919,168.25,168.21,2.1995]
[1717032657703,6.2528,168.24,168.21,2.1995]
[1717032658005,6.2528,168.24,168.2,3.0024704]
[1717032658402,6.2528,168.24,168.21,2.1995]
[1717032659994,6.2528,168.24,168.2,0.8027704]
[1717032660196,20.0,168.23,168.2,0.8027704]
[1717032660395,20.0,168.23,168.2,3.0024704]
[1717032660923,22.1993,168.23,168.2,0.8027704]
[1717032661106,20.0,168.23,168.2,2.58210491]
[1717032661318,22.1993,168.23,168.2,2.58210491]
[1717032662420,6.492,168.28,168.2,0.8027704]
[1717032662717,2.1991,168.25,168.2,9.8024704]
[1717032663019,2.199,168.26,168.21,2.1995]
[1717032663913,6.492,168.28,168.21,11.1992]
[1717032664096,2.1989,168.27,168.23,2.1993]
[1717032664718,2.1989,168.26,168.22,2.1994]
[1717032665805,6.247,168.26,168.22,2.1994]
[1717032666006,8.446,168.26,168.22,2.1994]
[1717032666221,8.446,168.26,168.2,0.8027704]
[1717032666222,2.1991,168.25,168.2,0.8027704]
[1717032666527,2.1991,168.25,168.21,2.1995]
[1717032667021,8.446,168.26,168.21,2.1995]
[1717032667717,2.1989,168.26,168.22,2.1994]
[1717032668321,2.72587443,168.29,168.23,6.8]
[1717032668532,4.92447443,168.29,168.24,2.1991]
[1717032668704,2.1988,168.28,168.24,2.1991]
[1717032668908,4.92447443,168.29,168.24,2.1992]
[1717032669309,4.92447443,168.29,168.25,2.199]
[1717032669815,4.92447443,168.29,168.26,2.1989]
[1717032669816,2.72587443,168.29,168.26,2.1989]
[1717032670223,2.72587443,168.29,168.25,2.199]
[1717032670612,2.72587443,168.29,168.26,2.1988]
[1717032671030,2.72587443,168.29,168.27,2.1988]
[1717032671629,2.72587443,168.29,168.26,2.1989]
[1717032671836,2.72587443,168.29,168.27,2.1987]
[1717032672050,2.72587443,168.29,168.26,2.1989]
[1717032672214,2.72587443,168.29,168.27,2.1988]
[1717032672736,2.72587443,168.29,168.26,2.1989]
[1717032675638,8.83177443,168.29,168.24,2.1991]
[1717032675816,2.1987,168.28,168.24,2.1991]
[1717032676015,2.1987,168.28,168.22,3.08501944]
[1717032676016,2.1987,168.28,168.23,2.1993]
[1717032676240,8.8362,168.28,168.24,0.37253287]
[1717032676740,8.8362,168.28,168.23,2.1993]
[1717032677331,6.3096,168.26,168.22,5.28441944]
[1717032677531,8.5086,168.26,168.22,2.1994]
[1717032677850,8.5086,168.26,168.21,5.28451944]
[1717032678155,6.3096,168.26,168.22,2.1994]
[1717032679349,8.5086,168.26,168.22,2.1994]
[1717032679649,2.72587443,168.29,168.21,3.08501944]
[1717032679650,8.4612,168.25,168.21,3.08501944]
[1717032679939,2.1992,168.24,168.2,6.08748984]
[1717032680154,8.4612,168.25,168.21,1.52484901]
[1717032680755,8.4612,168.25,168.21,4.56582338]
[1717032682253,8.4612,168.25,168.2,3.0024704]
[1717032682254,6.3633,168.24,168.2,3.0024704]
[1717032682748,6.3633,168.24,168.21,2.1996]
[1717032683052,6.3633,168.24,168.2,4.77896468]
[1717032683855,6.3633,168.24,168.21,2.1995]
[1717032684751,6.3633,168.24,168.21,4.26562266]
[1717032685734,6.3633,168.24,168.22,2.1994]
[1717032686455,6.3633,168.24,168.21,2.1995]
[1717032687075,8.7158,168.26,168.22,2.1994]
[1717032687375,6.5168,168.25,168.22,2.1994]
[1717032687583,6.5168,168.25,168.21,2.1995]
[1717032688377,6.5168,168.25,168.22,2.1994]
[1717032688673,8.7159,168.25,168.21,2.1995]
[1717032690383,6.2608,168.26,168.22,2.1994]
[1717032690873,2.1989,168.27,168.2,7.6027704]
[1717032691081,24.92447443,168.29,168.22,6.8]
[1717032691257,24.92447443,168.29,168.24,2.1991]
[1717032691460,2.1987,168.28,168.24,2.1991]
[1717032691961,8.5998,168.28,168.23,2.1993]
[1717032692165,8.5998,168.28,168.24,2.1992]
[1717032692363,8.5998,168.28,168.23,2.1993]
[1717032692781,2.1988,168.27,168.23,2.1993]
[1717032693555,8.7518,168.27,168.23,2.1993]
[1717032695281,2.1989,168.26,168.22,2.1994]
[1717032695479,8.7202,168.26,168.22,2.1994]
[1717032696569,8.7202,168.26,168.21,2.1995]
[1717032696983,8.7202,168.26,168.22,2.1994]
[1717032698070,2.1989,168.26,168.21,2.1995]
[1717032698381,6.2757,168.25,168.21,2.1995]
[1717032698678,2.1988,168.27,168.2,0.8027704]
[1717032698881,2.1988,168.27,168.21,6.8]
[1717032699765,2.1988,168.27,168.23,2.1993]
[1717032700577,2.1989,168.26,168.22,2.1994]
[1717032701775,2.1989,168.26,168.22,8.9994]
[1717032701960,2.1989,168.26,168.22,2.1994]
[1717032702168,6.3301,168.25,168.21,2.1995]
[1717032702368,2.1993,168.24,168.2,3.0024704]
[1717032702568,8.7555,168.24,168.2,3.0024704]
[1717032702785,8.7555,168.24,168.2,0.8027704]
[1717032703081,8.7555,168.24,168.2,3.0024704]
[1717032705082,6.5562,168.24,168.2,3.0024704]
[1717032705504,2.1991,168.25,168.21,2.1995]
[1717032705692,20.0,168.27,168.21,2.1995]
[1717032705865,20.0,168.27,168.2,7.6027704]
[1717032706065,2.199,168.26,168.2,7.6027704]
[1717032706582,2.199,168.26,168.22,2.1994]
[1717032706787,2.1991,168.25,168.21,2.1995]
[1717032706974,8.2206,168.25,168.21,2.1995]
[1717032707176,8.2206,168.25,168.2,3.0023704]
[1717032707566,2.1991,168.25,168.21,2.1996]
[1717032707992,2.1991,168.25,168.21,2.72918383]
[1717032709176,2.1992,168.24,168.2,3.0024704]
[1717032709582,2.1991,168.25,168.2,3.0024704]
[1717032709784,8.2511,168.25,168.21,2.1996]
[1717032711497,2.1991,168.25,168.21,2.1996]
[1717032711671,2.199,168.26,168.22,2.1994]
[1717032712390,2.199,168.26,168.21,3.38773393]
[1717032712897,2.1991,168.25,168.21,3.38773393]
[1717032713074,2.1992,168.24,168.2,3.0024704]
[1717032713592,26.0714,168.27,168.2,3.0024704]
[1717032713791,2.199,168.26,168.21,2.1996]
[1717032714182,2.199,168.26,168.21,3.02080627]
[1717032714886,2.1991,168.25,168.21,3.02080627]
[1717032717096,26.0714,168.27,168.2,1.63833782]
[1717032717097,32.6681,168.27,168.2,1.63833782]
[1717032717306,4.398,168.26,168.2,0.8027704]
[1717032717491,4.398,168.26,168.2,1.63888703]
[1717032717803,2.1993,168.24,168.2,1.63888703]
[1717032719107,2.1993,168.24,168.2,3.83858703]
[1717032722006,2.1994,168.23,168.2,0.8027704]
[1717032723091,22.1991,168.25,168.21,2.1995]
[1717032723291,2.1991,168.25,168.22,1.04375292]
[1717032723898,2.1993,168.24,168.2,7.6027704]
[1717032724085,2.1993,168.24,168.2,0.8027704]
[1717032724288,2.1993,168.24,168.2,3.0024704]
[1717032724704,2.1993,168.24,168.21,1.18811322]
[1717032725720,2.1993,168.24,168.21,2.3775347]
[1717032726213,2.1993,168.23,168.21,0.3942042]
[1717032726411,2.1994,168.23,168.21,0.3942042]
[1717032726994,2.1993,168.24,168.21,0.3942042]
[1717032727511,22.1991,168.25,168.21,0.73628268]
[1717032727711,2.1991,168.25,168.21,0.73628268]
[1717032728595,2.1991,168.25,168.2,3.0024704]
[1717032729006,2.1992,168.24,168.2,0.8027704]
[1717032729493,2.1992,168.24,168.2,1.98963486]
[1717032729993,2.1991,168.25,168.2,4.18923486]
[1717032730189,2.1992,168.24,168.2,4.18923486]
[1717032730920,2.1992,168.24,168.2,3.0023704]
[1717032733018,2.1993,168.24,168.2,0.8027704]
[1717032733328,2.1993,168.24,168.2,3.18022254]
[1717032733625,2.1993,168.23,168.2,3.18022254]
[1717032733825,12.7348,168.25,168.2,0.8027704]
[1717032734122,24.3986,168.24,168.2,0.8027704]
[1717032734801,2.1995,168.22,168.2,0.8027704]
[1717032738121,20.0,168.24,168.2,0.8027704]
[1717032738122,2.1996,168.21,168.2,0.8027704]
[1717032740923,24.3986,168.24,168.2,0.8027704]
[1717032741125,2.1996,168.21,168.2,0.8027704]
[1717032742540,2.1995,168.22,168.2,0.8027704]
[1717032744023,2.1996,168.21,168.2,0.8027704]
[1717032745713,2.1995,168.22,168.2,0.8027704]
[1717032749125,20.0,168.24,168.2,0.8027704]
[1717032749337,3.05539307,168.25,168.2,7.6027704]
[1717032749637,5.25449307,168.25,168.21,2.1995]
[1717032750133,5.25449307,168.25,168.2,16.2385704]
[1717032750525,5.25449307,168.25,168.21,8.4532]
[1717032750728,3.05539307,168.25,168.22,15.2531]
[1717032751829,5.25449307,168.25,168.22,6.2537]
[1717032752041,5.25449307,168.25,168.21,2.1996]
[1717032752724,5.25449307,168.25,168.2,3.0024704]
[1717032752929,5.25449307,168.25,168.22,1.67339269]
[1717032753428,5.25449307,168.25,168.21,2.1995]
[1717032753746,2.1992,168.24,168.2,0.8027704]
[1717032754432,2.1992,168.24,168.2,3.0024704]
[1717032754734,5.25449307,168.25,168.2,3.0024704]
[1717032756445,5.25449307,168.25,168.21,4.45734003]
[1717032757746,3.05539307,168.25,168.21,2.1996]
[1717032758839,5.25449307,168.25,168.21,2.1996]
[1717032763562,5.25449307,168.25,168.2,0.8027704]
[1717032763847,5.25449307,168.25,168.21,2.1996]
[1717032764018,5.25449307,168.25,168.2,3.0024704]
[1717032764223,5.25449307,168.25,168.21,2.1996]
[1717032765033,5.25449307,168.25,168.2,3.0023704]
[1717032766127,6.0885,168.24,168.2,0.8027704]
[1717032766622,2.1994,168.23,168.2,0.8027704]
[1717032766819,6.0885,168.24,168.2,0.8027704]
[1717032766820,2.1995,168.22,168.2,0.8027704]
[1717032767434,3.05539307,168.25,168.2,0.8027704]
[1717032767841,2.1992,168.24,168.2,9.8024704]
[1717032768031,22.1992,168.24,168.2,9.8024704]
[1717032768229,22.1992,168.24,168.2,0.8027704]
[1717032768630,22.1992,168.24,168.2,3.0024704]
[1717032769342,6.4027,168.29,168.2,3.0024704]
[1717032769343,6.5186,168.37,168.21,6.3949]
[1717032769542,2.1987,168.29,168.25,6.8]
[1717032769845,2.1984,168.3,168.25,8.999]
[1717032770028,2.1984,168.3,168.26,8.9989]
[1717032770529,2.1984,168.3,168.26,6.8]
[1717032770930,2.1986,168.29,168.26,6.8]
[1717032771938,2.1987,168.28,168.25,6.8]
[1717032773044,24.3965,168.32,168.23,8.9993]
[1717032773045,2.1988,168.27,168.23,8.9993]
[1717032773243,4.3968,168.31,168.23,2.1993]
[1717032773244,2.1987,168.28,168.23,2.1993]
[1717032773546,2.1987,168.28,168.24,2.1992]
[1717032773748,2.1987,168.28,168.24,8.9992]
[1717032775234,2.1987,168.28,168.24,6.8]
[1717032776035,4.3962,168.33,168.26,6.8]
[1717032776231,2.1983,168.31,168.26,8.9989]
[1717032776645,2.1983,168.31,168.27,6.8]
[1717032776949,2.1984,168.3,168.28,6.8]
[1717032777136,20.0,168.32,168.26,2.1989]
[1717032777137,2.1983,168.31,168.26,2.1989]
[1717032777344,2.1983,168.31,168.28,6.8]
[1717032777548,2.1983,168.31,168.27,6.8]
[1717032777754,2.1984,168.3,168.28,0.95788885]
[1717032777941,2.1985,168.29,168.25,8.999]
[1717032778249,2.1981,168.33,168.28,6.8]
[1717032778454,2.1981,168.33,168.29,2.1985]
[1717032779238,2.1982,168.32,168.28,6.8]
[1717032780365,2.1982,168.32,168.29,1.00476003]
[1717032780580,2.1982,168.32,168.27,8.9988]
[1717032780735,2.1982,168.32,168.28,1.1876907]
[1717032781245,2.1981,168.33,168.28,3.3862907]
[1717032781429,2.1982,168.32,168.28,3.3862907]
[1717032782055,2.1982,168.32,168.27,8.9988]
[1717032782957,2.1983,168.31,168.28,0.69294531]
[1717032783336,30.9892,168.35,168.28,0.69294531]
[1717032783531,30.9892,168.35,168.26,8.9989]
[1717032783532,2.1984,168.31,168.26,8.9989]
[1717032784058,2.1984,168.31,168.27,2.1988]
[1717032785134,4.94743672,168.32,168.27,2.1988]
[1717032788152,2.1988,168.27,168.23,2.1992]
[1717032788353,6.3806,168.3,168.24,1.07931158]
[1717032788559,20.0,168.29,168.24,2.1991]
[1717032788731,20.0,168.29,168.24,8.9991]
[1717032788732,22.1986,168.29,168.24,8.9991]
[1717032789155,2.1987,168.28,168.24,8.9991]
[1717032789359,2.1987,168.28,168.24,2.1991]
[1717032790437,2.1987,168.28,168.23,8.9993]
[1717032790639,2.1987,168.28,168.23,2.1993]
[1717032790860,2.1987,168.28,168.24,2.1992]
[1717032791743,2.1988,168.27,168.23,2.1993]
[1717032791941,2.199,168.26,168.22,2.1994]
[1717032792559,6.4773,168.27,168.21,2.1995]
[1717032792560,2.1991,168.25,168.21,2.1995]
[1717032793350,2.199,168.26,168.22,2.1994]
[1717032796459,2.199,168.26,168.23,2.1993]
[1717032796663,8.7945,168.29,168.22,2.1994]
[1717032796849,2.199,168.26,168.22,2.1994]
[1717032801871,8.2738,168.26,168.22,2.1994]
[1717032802789,2.1991,168.25,168.22,2.1994]
[1717032802966,8.2738,168.26,168.22,2.1994]
[1717032804681,2.1988,168.27,168.23,2.1993]
[1717032804899,21.9985,168.31,168.2,0.8027704]
[1717032805062,22.1984,168.3,168.26,2.1988]
[1717032805979,20.0,168.3,168.22,4.3989]
[1717032806186,2.1987,168.28,168.24,2.1991]
[1717032806479,2.1987,168.28,168.25,2.1991]
[1717032806688,2.1987,168.28,168.22,4.3989]
[1717032806689,22.1984,168.3,168.26,2.1989]
[1717032807187,2.1985,168.29,168.25,2.199]
[1717032809085,20.0,168.3,168.24,2.1991]
[1717032809086,2.1987,168.28,168.24,2.1991]
[1717032809783,2.1986,168.29,168.25,2.1991]
[1717032811490,22.1985,168.3,168.26,2.1989]
[1717032812080,22.1985,168.3,168.27,2.1988]
[1717032812578,22.1985,168.3,168.26,2.1989]
[1717032813181,2.1985,168.29,168.26,2.1989]
[1717032813385,2.1985,168.29,168.25,2.199]
[1717032815188,2.1985,168.29,168.26,2.1989]
[1717032815687,2.1985,168.29,168.25,2.199]
[1717032816186,2.1987,168.28,168.25,2.199]
[1717032816394,20.0,168.3,168.24,2.1991]
[1717032816592,20.0,168.31,168.25,2.199]
[1717032816808,20.0,168.31,168.24,2.1991]
[1717032816977,2.1986,168.29,168.25,2.1991]
[1717032820604,20.0,168.31,168.27,2.1988]
[1717032820791,22.1983,168.31,168.27,2.1988]
[1717032822210,2.1984,168.3,168.27,2.1988]
[1717032823421,2.1984,168.3,168.26,2.1989]
[1717032823598,2.1983,168.31,168.25,6.8]
[1717032823794,2.1983,168.31,168.27,2.1987]
[1717032824306,2.1984,168.3,168.26,2.1989]
[1717032825313,2.1983,168.31,168.27,2.1988]
[1717032828810,4.3966,168.31,168.22,19.9967]
[1717032829113,2.1986,168.29,168.22,19.9967]
[1717032829320,2.1986,168.29,168.25,2.199]
[1717032829812,2.1987,168.28,168.24,2.1992]
[1717032830014,2.1986,168.29,168.24,2.1992]
[1717032830406,2.1986,168.29,168.25,2.199]
[1717032832500,2.1986,168.29,168.24,2.1991]
[1717032832819,20.0,168.3,168.24,2.1991]
[1717032832820,2.1988,168.27,168.24,0.89873481]
[1717032832998,2.1989,168.27,168.22,2.1994]
[1717032833699,2.1989,168.27,168.23,0.82813437]
[1717032834398,6.5165,168.26,168.22,2.61380591]
[1717032834599,6.5165,168.26,168.22,2.1994]
[1717032835015,2.1989,168.27,168.22,2.1994]
[1717032835922,8.4258,168.27,168.22,2.1994]
[1717032836317,6.2269,168.25,168.22,3.68813587]
[1717032836505,6.2269,168.25,168.22,2.1994]
[1717032836825,6.2269,168.25,168.21,2.1995]
[1717032837441,8.426,168.25,168.2,7.6027704]
[1717032837606,8.426,168.25,168.21,0.34414758]
[1717032837805,8.426,168.25,168.2,0.8027704]
[1717032838004,2.199,168.26,168.21,2.1995]
[1717032842732,2.1991,168.25,168.21,2.1995]
[1717032845728,2.1991,168.25,168.2,3.0024704]
[1717032846426,2.1991,168.25,168.21,2.1996]
[1717032846626,2.1991,168.25,168.2,3.0024704]
[1717032846922,2.1994,168.23,168.2,0.8027704]
[1717032848315,2.1995,168.22,168.2,0.8027704]
[1717032848527,2.1994,168.23,168.2,0.8027704]
[1717032850943,2.1995,168.22,168.2,0.8027704]
[1717032851817,2.1996,168.21,168.2,0.8027704]
[1717032874440,22.1996,168.21,168.2,0.8027704]
[1717032881151,2.1996,168.21,168.2,0.8027704]
[1717032881358,19.7933,168.24,168.2,0.8027704]
[1717032881359,8.7958,168.27,168.2,0.8027704]
[1717032881559,24.3979,168.26,168.2,0.8027704]
[1717032881948,2.1994,168.23,168.2,0.8027704]
[1717032882136,2.1992,168.25,168.2,4.19061643]
[1717032882343,24.3979,168.26,168.2,4.19061643]
[1717032882548,2.1993,168.24,168.2,1.99101643]
[1717032882753,2.1993,168.23,168.2,1.99101643]
[1717032883546,2.1993,168.23,168.2,0.8027704]
[1717032884043,2.1995,168.22,168.2,0.8027704]
[1717032889165,2.1994,168.23,168.2,0.8027704]
[1717032889539,2.1996,168.21,168.2,0.8027704]
[1717032900457,22.1995,168.22,168.2,0.8027704]
[1717032900659,20.0,168.21,168.2,0.8027704]
[1717032901372,22.1996,168.21,168.2,0.8027704]
[1717032905377,33.1976,168.21,168.2,0.8027704]
[1717032905857,41.9961,168.21,168.2,0.8027704]
[1717032914872,48.4386,168.21,168.2,0.8027704]
[1717032915978,64.0495,168.21,168.2,0.8027704]
[1717032916279,109.0495,168.21,168.2,0.8027704]
[1717032919971,109.0495,168.21,168.2,7.04e-05]
[1717032920678,126.8695,168.21,168.2,7.04e-05]
[1717032926899,48.4386,168.21,168.2,7.04e-05]
[1717032928182,93.4386,168.21,168.2,7.04e-05]
[1717032928704,41.9961,168.21,168.2,7.04e-05]
[1717032929282,21.9961,168.21,168.2,7.04e-05]
[1717032932185,41.9961,168.21,168.2,7.04e-05]
[1717032947110,93.1168,168.21,168.2,7.04e-05]
[1717032947806,110.9368,168.21,168.2,7.04e-05]
[1717032948115,133.36881678,168.21,168.2,7.04e-05]
[1717032955003,48.19171678,168.21,168.2,7.04e-05]
[1717032955594,28.19171678,168.21,168.2,7.04e-05]
[1717032955815,21.9961,168.21,168.2,7.04e-05]
[1717032957113,66.9961,168.21,168.2,7.04e-05]
[1717032957502,86.9961,168.21,168.2,7.04e-05]
[1717032963030,41.9961,168.21,168.2,7.04e-05]
[1717032964342,15.3973,168.21,168.2,7.04e-05]
[1717032964501,6.5988,168.21,168.2,7.04e-05]
[1717032964831,13.1976,168.21,168.2,7.04e-05]
[1717032965002,21.9961,168.21,168.2,7.04e-05]
[1717032965630,41.9961,168.21,168.2,7.04e-05]
[1717032970035,2.1996,168.21,168.2,7.04e-05]
[1717032970410,2.1996,168.21,168.2,6.4229704]
[1717032971027,6.5988,168.21,168.2,7.04e-05]
[1717032971423,26.5988,168.21,168.2,7.04e-05]
[1717032972033,41.9961,168.21,168.2,7.04e-05]
[1717032977025,86.9961,168.21,168.2,7.04e-05]
[1717032981238,41.9961,168.21,168.2,7.04e-05]
[1717032989430,86.9961,168.21,168.2,7.04e-05]
[1717032989626,41.9961,168.21,168.2,7.04e-05]
[1717032996950,35.3973,168.21,168.2,7.04e-05]
[1717032997150,6.5988,168.21,168.2,7.04e-05]
[1717032998150,13.1976,168.21,168.2,7.04e-05]
[1717032998659,33.1976,168.21,168.2,7.04e-05]
[1717032999967,26.5988,168.21,168.2,7.04e-05]
[1717033004564,22.1996,168.21,168.2,7.04e-05]
[1717033007869,26.5988,168.21,168.2,7.04e-05]
[1717033017782,41.9961,168.21,168.2,7.04e-05]
[1717033020771,93.3483,168.21,168.2,7.04e-05]